bitfinex/quotes_SOLUSD_20251212
["timestamp","ask_amount","ask_price","bid_price","bid_amount"]
[1765554702923,8.12,134.79,134.76,0.2]
[1765554703101,8.82,134.79,134.76,0.2]
[1765554703300,0.7,134.78,134.76,0.2]
[1765554703630,13.0470912,134.77,134.76,0.2]
[1765554703800,13.7470912,134.77,134.76,0.2]
[1765554704495,13.0470912,134.77,134.76,7.57208817]
[1765554704722,13.0470912,134.77,134.76,7.62059958]
[1765554705108,8.82,134.79,134.76,7.57208817]
[1765554705444,0.7,134.78,134.76,14.99268775]
[1765554705598,0.7,134.78,134.76,0.2]
[1765554705800,0.7,134.78,134.76,7.57208817]
[1765554706107,21.1670912,134.79,134.76,14.99259977]
[1765554706312,21.8670912,134.79,134.76,14.99259977]
[1765554707013,21.8670912,134.79,134.76,7.6205116]
[1765554707326,21.8670912,134.79,134.76,14.99259977]
[1765554707703,21.1670912,134.79,134.76,14.99259977]
[1765554708018,21.8670912,134.79,134.76,14.99259977]
[1765554708718,21.8670912,134.79,134.76,7.57208817]
[1765554709228,13.0470912,134.77,134.76,0.2]
[1765554709426,13.7470912,134.77,134.76,0.2]
[1765554710018,21.85703612,134.76,134.69,19.249951]
[1765554710251,8.12,134.75,134.73,7.37208817]
[1765554710538,8.12,134.75,134.74,7.37208817]
[1765554711206,8.12,134.75,134.72,7.37208817]
[1765554711405,0.66,134.74,134.71,7.37208817]
[1765554711628,8.0817854,134.74,134.7,7.37208817]
[1765554711826,15.54134029,134.75,134.71,7.37208817]
[1765554712031,8.12,134.75,134.72,7.37208817]
[1765554712606,8.12,134.75,134.73,8.06208817]
[1765554713031,8.12,134.75,134.74,7.37208817]
[1765554713336,8.12,134.77,134.73,7.37208817]
[1765554713548,93.54330614,134.82,134.76,7.37208817]
[1765554713718,93.54330614,134.82,134.77,7.37208817]
[1765554713719,8.12,134.81,134.77,7.37208817]
[1765554713925,8.78,134.81,134.77,7.37208817]
[1765554714127,0.66,134.8,134.76,7.37208817]
[1765554714311,0.66,134.8,134.74,0.69]
[1765554715054,13.0470912,134.78,134.76,7.37208817]
[1765554715339,13.0470912,134.78,134.75,7.37208817]
[1765554715718,0.66,134.77,134.72,0.69]
[1765554715912,16.15208817,134.77,134.69,0.69]
[1765554716110,16.15208817,134.77,134.72,7.42243528]
[1765554716318,21.1670912,134.77,134.75,7.42093543]
[1765554717421,21.1670912,134.77,134.74,14.79361792]
[1765554717739,21.8270912,134.77,134.73,14.7943109]
[1765554717940,8.78,134.77,134.73,14.7943109]
[1765554718116,0.66,134.8,134.76,7.37208817]
[1765554718547,20.41917937,134.79,134.74,15.4835902]
[1765554718728,20.41917937,134.79,134.74,0.69]
[1765554718926,0.66,134.78,134.73,14.79421101]
[1765554719120,8.12,134.77,134.73,7.42212284]
[1765554719319,8.12,134.77,134.73,14.79421101]
[1765554719648,8.78,134.77,134.74,7.42159542]
[1765554720021,15.54022855,134.77,134.73,7.37208817]
[1765554720353,8.12,134.77,134.73,33.34991993]
[1765554720536,8.12,134.77,134.74,0.69]
[1765554720715,8.12,134.77,134.75,7.37208817]
[1765554720922,8.12,134.78,134.75,7.37208817]
[1765554721133,8.12,134.78,134.75,8.06208817]
[1765554721337,8.12,134.78,134.75,0.69]
[1765554721538,8.12,134.78,134.75,8.06208817]
[1765554721778,94.20255717,134.83,134.76,0.69]
[1765554722073,94.20255717,134.83,134.81,7.37208817]
[1765554722074,8.12,134.83,134.81,7.37208817]
[1765554722236,75.66,134.86,134.82,7.37208817]
[1765554722237,91.19544489,134.86,134.82,7.37208817]
[1765554722435,0.66,134.89,134.83,0.69]
[1765554722637,8.12,134.88,134.86,7.37208817]
[1765554722848,8.12,134.88,134.83,0.69]
[1765554723059,8.12,134.88,134.87,7.37208817]
[1765554723360,8.12,134.88,134.86,7.37208817]
[1765554723947,8.12,134.88,134.83,18.54104459]
[1765554723948,8.78,134.88,134.84,7.37208817]
[1765554724153,8.78,134.88,134.83,0.69]
[1765554724154,21.07917937,134.87,134.82,14.78937627]
[1765554724348,88.7070912,134.87,134.82,7.37208817]
[1765554724563,75.94432314,134.86,134.8,8.10829946]
[1765554724895,83.31641131,134.86,134.81,7.37208817]
[1765554725068,13.0470912,134.81,134.78,7.37208817]
[1765554725367,8.12,134.82,134.8,14.79048579]
[1765554725540,8.12,134.85,134.81,7.37208817]
[1765554725859,8.12,134.85,134.78,7.41949042]
[1765554725860,13.0470912,134.82,134.78,7.41949042]
[1765554726061,7.37208817,134.79,134.73,0.69]
[1765554726270,7.37208817,134.77,134.73,0.69]
[1765554726566,8.12,134.81,134.76,7.37208817]
[1765554726752,8.78,134.81,134.76,0.69]
[1765554726952,8.78,134.81,134.76,7.37208817]
[1765554727154,8.12,134.81,134.77,0.69]
[1765554727551,15.49208817,134.81,134.75,7.37208817]
[1765554727752,14.79048579,134.8,134.74,34.03767236]
[1765554728141,14.79048579,134.8,134.74,33.34767236]
[1765554728463,99.96203309,134.81,134.75,8.06208817]
[1765554728670,7.37208817,134.8,134.75,0.69]
[1765554729059,150.66,134.79,134.72,0.69]
[1765554729263,150.66,134.79,134.73,7.42220913]
[1765554729264,163.7070912,134.79,134.73,7.42220913]
[1765554729577,20.41917937,134.79,134.74,7.42164083]
[1765554729888,20.41917937,134.79,134.76,7.42059958]
[1765554729889,13.0470912,134.79,134.76,7.42059958]
[1765554730081,0.66,134.78,134.73,7.37208817]
[1765554730381,7.37208817,134.77,134.72,0.69]
[1765554730594,8.12,134.76,134.72,0.69]
[1765554730809,8.78,134.76,134.7,0.69]
[1765554730955,7.37208817,134.75,134.7,0.69]
[1765554731260,96.8270912,134.76,134.7,8.06208817]
[1765554731464,21.1670912,134.76,134.7,0.69]
[1765554731662,21.1670912,134.76,134.71,8.06208817]
[1765554731867,21.1670912,134.76,134.71,0.69]
[1765554732071,21.1670912,134.76,134.69,19.25114039]
[1765554732072,0.66,134.75,134.69,19.25114039]
[1765554732358,7.37208817,134.71,134.68,0.2]
[1765554732579,8.12,134.7,134.68,0.2]
[1765554732763,8.78,134.7,134.68,0.2]
[1765554732959,21.85703612,134.71,134.68,7.62490867]
[1765554732960,21.1670912,134.71,134.68,7.62490867]
[1765554733159,21.1670912,134.71,134.68,0.2]
[1765554733373,0.66,134.7,134.68,0.2]
[1765554733892,84.75426806,134.74,134.68,8.31488694]
[1765554734056,8.12,134.71,134.68,26.8774055]
[1765554734251,11.98742165,134.76,134.69,0.69]
[1765554734452,88.7070912,134.76,134.69,0.69]
[1765554734679,13.0470912,134.76,134.71,11.98742165]
[1765554734911,11.98742165,134.74,134.68,26.1874055]
[1765554735186,13.0470912,134.73,134.68,8.31488694]
[1765554735357,13.0470912,134.72,134.69,11.98742165]
[1765554735558,13.0470912,134.72,134.68,20.30230859]
[1765554735766,13.0470912,134.72,134.69,8.11421987]
[1765554736189,13.0470912,134.72,134.68,0.2]
[1765554736190,32.45735195,134.72,134.68,0.2]
[1765554736410,13.0470912,134.69,134.68,0.2]
[1765554736697,117.24878091,134.69,134.68,0.2]
[1765554736882,96.8270912,134.69,134.68,0.2]
[1765554737080,21.1670912,134.69,134.68,0.2]
[1765554737403,117.90878091,134.69,134.68,0.2]
[1765554737578,105.92135926,134.69,134.68,0.2]
[1765554737789,200.33323706,134.69,134.68,0.2]
[1765554737987,188.34581541,134.69,134.68,0.2]
[1765554738310,200.33323706,134.69,134.68,0.2]
[1765554739172,8.80994492,134.65,134.62,0.2]
[1765554739366,8.12,134.64,134.62,0.2]
[1765554739591,8.8,134.64,134.62,0.2]
[1765554739783,13.7270912,134.63,134.62,0.2]
[1765554739984,21.15485618,134.63,134.62,0.2]
[1765554740191,21.13485618,134.63,134.62,0.2]
[1765554740400,108.12227783,134.63,134.62,0.2]
[1765554740579,117.21654589,134.63,134.62,0.2]
[1765554740780,105.22912424,134.63,134.62,0.2]
[1765554740995,83.14,134.66,134.62,0.9]
[1765554741197,75.0,134.7,134.65,12.00735889]
[1765554741502,8.14,134.69,134.63,0.7]
[1765554741696,21.8470912,134.69,134.63,0.7]
[1765554741893,75.0,134.68,134.63,8.12768257]
[1765554742199,15.56447785,134.69,134.63,7.42768257]
[1765554742383,75.0,134.72,134.66,12.00735889]
[1765554742702,82.42108512,134.76,134.7,12.00735889]
[1765554742922,75.0,134.78,134.73,12.00735889]
[1765554743078,20.08631333,134.79,134.68,13.0470912]
[1765554743079,8.8,134.79,134.75,12.00735889]
[1765554743419,8.14,134.79,134.78,12.00735889]
[1765554743724,16.21906562,134.79,134.73,0.7]
[1765554743921,84.46994492,134.78,134.73,12.00735889]
[1765554744082,83.80994492,134.78,134.74,12.00735889]
[1765554744282,83.80994492,134.78,134.75,12.00735889]
[1765554744591,83.80994492,134.78,134.72,0.7]
[1765554744914,8.14,134.79,134.72,0.7]
[1765554745110,12.66735889,134.78,134.72,0.7]
[1765554745407,13.0470912,134.78,134.75,12.00735889]
[1765554745599,13.0470912,134.78,134.72,0.7]
[1765554745906,8.14,134.79,134.77,12.00735889]
[1765554746285,8.14,134.79,134.78,12.00735889]
[1765554746788,8.14,134.79,134.76,0.7]
[1765554747126,8.14,134.79,134.77,12.00735889]
[1765554747594,8.14,134.79,134.78,12.00735889]
[1765554748295,8.14,134.79,134.75,7.42081409]
[1765554748486,8.14,134.79,134.77,12.00735889]
[1765554748805,75.0,134.84,134.78,12.00735889]
[1765554749006,27.34879711,134.86,134.81,12.00735889]
[1765554749007,95.12735889,134.86,134.81,12.00735889]
[1765554749211,13.0470912,134.83,134.81,12.00735889]
[1765554749409,8.07564915,134.85,134.81,12.00735889]
[1765554749791,20.46339501,134.84,134.79,8.11894617]
[1765554749993,13.0470912,134.83,134.8,12.00735889]
[1765554750194,13.7070912,134.83,134.79,12.00735889]
[1765554750411,8.12,134.82,134.79,12.00735889]
[1765554750989,8.12,134.82,134.77,0.7]
[1765554751684,12.66735889,134.81,134.76,12.00735889]
[1765554751905,7.41839762,134.8,134.76,12.00735889]
[1765554752105,8.12,134.82,134.77,0.7]
[1765554752308,28.58439479,134.82,134.79,12.00735889]
[1765554752512,8.12,134.82,134.81,12.00735889]
[1765554752830,0.94432314,134.85,134.77,0.7]
[1765554752831,15.53621408,134.84,134.77,0.7]
[1765554753126,13.0470912,134.81,134.75,7.42108159]
[1765554753294,12.00735889,134.8,134.75,12.00735889]
[1765554753625,8.12,134.8,134.76,12.00735889]
[1765554753988,15.538759,134.8,134.76,12.00735889]
[1765554754289,8.12,134.8,134.77,0.7]
[1765554754489,8.12,134.8,134.78,12.00735889]
[1765554754685,8.12,134.8,134.77,12.00735889]
[1765554754899,15.53851166,134.8,134.76,8.12053795]
[1765554755116,8.12,134.8,134.77,12.00735889]
[1765554755695,8.12,134.8,134.78,12.70735889]
[1765554756004,8.12,134.8,134.75,18.55159374]
[1765554756210,8.12,134.8,134.78,12.00735889]
[1765554756388,8.12,134.8,134.77,12.00735889]
[1765554756597,8.12,134.8,134.78,12.00735889]
[1765554756908,8.78,134.8,134.78,12.00735889]
[1765554757087,8.78,134.8,134.77,19.42733477]
[1765554757292,8.12,134.8,134.78,12.00735889]
[1765554757494,75.0,134.83,134.79,12.00735889]
[1765554757709,83.78,134.83,134.79,12.00735889]
[1765554757920,96.8270912,134.83,134.79,12.00735889]
[1765554758094,103.58389489,134.83,134.8,12.00735889]
[1765554758619,75.0,134.87,134.82,12.00735889]
[1765554758791,33.86439501,134.86,134.79,7.41890319]
[1765554758991,33.86439501,134.86,134.81,12.00735889]
[1765554758992,34.52439501,134.86,134.81,12.00735889]
[1765554759306,0.66,134.85,134.81,12.00735889]
[1765554759993,7.41619697,134.84,134.81,12.00735889]
[1765554760190,7.41619697,134.84,134.82,12.00735889]
[1765554760411,8.07565008,134.85,134.82,12.00735889]
[1765554760711,8.07565008,134.85,134.8,0.7]
[1765554760901,8.07565008,134.85,134.82,12.00735889]
[1765554761101,8.07565008,134.85,134.8,0.7]
[1765554761299,0.66,134.84,134.77,0.7]
[1765554761491,0.66,134.84,134.8,12.00735889]
[1765554761902,8.78,134.84,134.8,12.00735889]
[1765554762225,8.78,134.84,134.78,7.41942964]
[1765554762226,7.41729713,134.82,134.78,7.41942964]
[1765554762394,12.00735889,134.81,134.68,38.1240172]
[1765554762592,13.0470912,134.8,134.76,12.00735889]
[1765554762795,21.8270912,134.8,134.73,0.7]
[1765554763119,0.66,134.79,134.74,12.00735889]
[1765554763413,0.94432314,134.79,134.74,12.00735889]
[1765554763591,12.95168203,134.79,134.74,12.00735889]
[1765554763792,0.66,134.78,134.74,12.00735889]
[1765554764317,8.0795878,134.78,134.74,12.00735889]
[1765554764699,8.0795878,134.78,134.73,19.42950255]
[1765554764995,8.0795878,134.78,134.73,20.12950255]
[1765554765200,13.7070912,134.77,134.71,8.12318515]
[1765554765518,8.12,134.76,134.71,12.00735889]
[1765554765717,8.12,134.76,134.72,12.00735889]
[1765554765900,8.12,134.76,134.73,12.00735889]
[1765554766101,8.12,134.76,134.74,12.00735889]
[1765554766402,7.42066616,134.76,134.71,7.42320677]
[1765554766609,7.42066616,134.76,134.71,8.12320677]
[1765554766810,7.42066616,134.76,134.72,12.70735889]
[1765554767129,20.46729266,134.77,134.73,12.00735889]
[1765554767303,12.66735889,134.75,134.7,0.7]
[1765554767499,8.78,134.75,134.7,12.70735889]
[1765554767713,8.78,134.75,134.7,0.7]
[1765554768226,16.20168302,134.75,134.7,0.7]
[1765554768419,27.54904191,134.75,134.7,12.00735889]
[1765554768618,27.54904191,134.75,134.7,20.13126281]
[1765554768619,16.20168302,134.75,134.7,20.13126281]
[1765554768913,0.66,134.74,134.7,8.12390392]
[1765554769106,15.54168302,134.75,134.71,12.00735889]
[1765554769314,8.12,134.75,134.73,12.00735889]
[1765554769620,8.12,134.75,134.72,12.70735889]
[1765554769804,8.12,134.75,134.72,12.00735889]
[1765554770001,8.12,134.75,134.72,0.7]
[1765554770202,16.25116913,134.75,134.7,12.71735889]
[1765554770402,0.71,134.74,134.69,8.13432726]
[1765554770602,12.00735889,134.72,134.65,0.71]
[1765554771042,0.71,134.72,134.67,7.42555237]
[1765554771198,0.71,134.72,134.67,19.43291126]
[1765554771404,0.71,134.72,134.68,12.00735889]
[1765554771613,0.71,134.72,134.68,8.13499568]
[1765554771816,0.71,134.72,134.68,0.71]
[1765554772101,13.0470912,134.7,134.66,8.13602105]
[1765554772406,13.0470912,134.7,134.67,19.43287533]
[1765554772607,13.0470912,134.7,134.67,19.43283645]
[1765554772804,13.0470912,134.7,134.67,20.14283645]
[1765554773031,0.71,134.69,134.62,31.81655122]
[1765554773232,0.71,134.69,134.65,12.00735889]
[1765554773411,25.05445009,134.7,134.65,12.00735889]
[1765554773610,0.71,134.69,134.62,0.2]
[1765554773816,13.0470912,134.67,134.63,0.71]
[1765554774018,21.1670912,134.67,134.62,19.63562749]
[1765554774218,21.1670912,134.67,134.65,12.00735889]
[1765554774536,8.12,134.67,134.64,12.00735889]
[1765554774713,8.12,134.67,134.65,12.00735889]
[1765554774910,8.12,134.67,134.63,0.71]
[1765554775222,13.0470912,134.7,134.63,0.99432314]
[1765554775425,13.0470912,134.7,134.68,12.00735889]
[1765554775804,8.12,134.71,134.69,12.00735889]
[1765554776005,8.12,134.71,134.68,0.71]
[1765554776224,8.12,134.71,134.67,12.00735889]
[1765554776225,15.54352941,134.71,134.67,12.00735889]
[1765554776413,15.54352941,134.71,134.67,0.71]
[1765554776733,15.54352941,134.71,134.64,0.71]
[1765554776734,25.05445009,134.69,134.64,0.71]
[1765554776937,13.0470912,134.68,134.64,12.71735889]
[1765554777460,27.5508883,134.71,134.66,12.00735889]
[1765554777620,25.76445009,134.7,134.65,20.14394016]
[1765554777821,13.7570912,134.7,134.65,20.14394016]
[1765554778218,8.13460327,134.69,134.63,8.13733717]
[1765554778418,13.0470912,134.68,134.64,20.14434961]
[1765554778639,13.0470912,134.68,134.64,8.13699072]
[1765554778829,13.0470912,134.68,134.64,19.43434961]
[1765554779137,13.0470912,134.68,134.65,8.13659297]
[1765554779613,13.0470912,134.68,134.65,0.71]
[1765554779813,13.0470912,134.68,134.65,20.12983526]
[1765554780018,13.0470912,134.68,134.64,7.42704897]
[1765554780215,20.47220482,134.68,134.64,7.42704897]
[1765554780431,11.99324127,134.66,134.62,0.2]
[1765554780632,0.71,134.67,134.62,0.2]
[1765554780633,8.85,134.67,134.62,0.2]
[1765554780835,12.70324127,134.66,134.62,0.2]
[1765554781025,13.0470912,134.64,134.62,0.2]
[1765554781418,88.7570912,134.64,134.62,0.2]
[1765554781633,75.0,134.65,134.62,0.2]
[1765554781827,8.13511362,134.68,134.62,0.91]
[1765554782029,83.85,134.69,134.63,8.13773636]
[1765554782230,83.85,134.69,134.62,0.2]
[1765554782231,19.41935147,134.66,134.62,0.2]
[1765554782434,13.0470912,134.67,134.63,0.71]
[1765554782626,13.0470912,134.67,134.63,12.70324127]
[1765554782826,12.70324127,134.66,134.62,0.2]
[1765554783028,0.71,134.66,134.62,0.2]
[1765554783227,0.71,134.65,134.62,0.2]
[1765554783429,75.0,134.64,134.62,0.2]
[1765554783636,11.99324127,134.63,134.62,0.2]
[1765554783838,12.70324127,134.63,134.62,0.2]
[1765554784042,0.71,134.63,134.62,0.2]
[1765554784356,21.1870912,134.64,134.62,0.2]
[1765554784725,8.14,134.64,134.62,0.2]
[1765554785033,15.56734692,134.64,134.62,0.2]
[1765554786040,28.27058819,134.64,134.62,0.2]
[1765554786230,20.13100625,134.63,134.62,0.2]
[1765554786427,95.13100625,134.63,134.62,0.2]
[1765554786631,108.17809745,134.63,134.62,0.2]
[1765554786829,108.17809745,134.63,134.6,0.2]
[1765554786830,88.0470912,134.61,134.6,0.2]
[1765554787028,109.13460053,134.61,134.6,0.2]
[1765554787238,11.99324127,134.55,134.54,0.2]
[1765554787432,150.0,134.53,134.51,0.2]
[1765554787643,33.89033247,134.55,134.51,0.2]
[1765554788021,11.99324127,134.53,134.51,0.2]
[1765554788327,7.43383883,134.52,134.51,0.2]
[1765554788528,19.4270801,134.52,134.51,0.2]
[1765554789137,150.0,134.53,134.51,0.2]
[1765554789335,87.70324127,134.53,134.51,0.2]
[1765554789548,11.99324127,134.52,134.51,0.2]
[1765554789730,83.14341141,134.53,134.51,0.2]
[1765554789931,95.13665268,134.53,134.51,0.2]
[1765554790130,11.99324127,134.52,134.51,0.2]
[1765554790340,7.43383883,134.52,134.51,0.2]
[1765554790545,19.4270801,134.52,134.51,0.2]
[1765554790744,20.1370801,134.52,134.51,0.2]
[1765554791125,83.14383883,134.52,134.51,0.2]
[1765554791325,20.1370801,134.52,134.51,0.2]
[1765554791522,13.0470912,134.48,134.33,0.99999999]
[1765554791726,11.99324127,134.45,134.4,0.71]
[1765554791928,13.0470912,134.45,134.4,8.1499972]
[1765554792138,13.0470912,134.45,134.4,8.15007282]
[1765554792350,20.48480038,134.45,134.4,0.71]
[1765554792652,13.0470912,134.45,134.4,0.71]
[1765554792853,20.89480038,134.45,134.4,0.71]
[1765554793145,95.48480038,134.45,134.4,0.71]
[1765554793351,13.0470912,134.45,134.4,0.71]
[1765554793554,8.14,134.45,134.42,0.71]
[1765554793934,8.14,134.45,134.37,18.60455914]
[1765554794256,83.14,134.45,134.39,0.71]
[1765554794438,90.57770918,134.45,134.39,7.44051062]
[1765554794644,165.98770918,134.45,134.39,7.44051062]
[1765554794839,177.98095045,134.45,134.38,20.14477438]
[1765554795040,8.80994492,134.44,134.35,0.71]
[1765554795231,13.0470912,134.41,134.37,0.71]
[1765554795431,21.1870912,134.41,134.37,0.71]
[1765554795646,8.14,134.41,134.38,11.99324127]
[1765554795949,150.0,134.48,134.37,0.71]
[1765554796150,8.14,134.45,134.37,0.71]
[1765554796352,8.14,134.45,134.38,26.04554248]
[1765554796730,8.14,134.45,134.41,7.40642013]
[1765554797133,98.09455929,134.45,134.39,7.40642013]
[1765554797333,8.14,134.45,134.41,7.40642013]
[1765554797660,75.0,134.5,134.4,0.66]
[1765554797964,75.0,134.46,134.4,0.66]
[1765554798127,83.14,134.46,134.4,0.66]
[1765554798442,0.5,134.44,134.4,8.10022474]
[1765554798637,0.5,134.44,134.41,7.40642013]
[1765554798963,7.93834511,134.44,134.38,0.66]
[1765554799256,7.93834511,134.44,134.35,18.60702118]
[1765554799257,0.5,134.44,134.4,7.44029441]
[1765554799460,8.14,134.48,134.41,0.66]
[1765554799637,14.84140919,134.5,134.45,7.40642013]
[1765554799831,14.84140919,134.5,134.41,0.66]
[1765554800057,150.0,134.49,134.41,0.66]
[1765554800245,163.0470912,134.49,134.41,0.66]
[1765554800554,7.43604997,134.48,134.44,7.40642013]
[1765554800755,13.0470912,134.49,134.43,7.43850907]
[1765554801053,13.0470912,134.49,134.44,8.08642013]
[1765554801261,13.0470912,134.49,134.45,7.40642013]
[1765554801451,13.0470912,134.49,134.45,0.68]
[1765554801763,8.14,134.51,134.48,7.40642013]
[1765554801965,8.14,134.51,134.49,7.40642013]
[1765554802134,8.14,134.51,134.46,0.68]
[1765554802135,75.0,134.56,134.5,7.40642013]
[1765554802331,8.14,134.57,134.53,7.43307126]
[1765554802546,8.14,134.57,134.52,7.43374349]
[1765554802863,8.14,134.57,134.53,15.51963224]
[1765554803036,8.14,134.57,134.54,0.68]
[1765554803551,15.54642013,134.57,134.52,7.43377908]
[1765554803764,158.14,134.57,134.5,0.68]
[1765554803975,158.14,134.57,134.46,21.85703612]
[1765554803976,75.0,134.55,134.47,0.68]
[1765554804270,163.0470912,134.53,134.47,0.68]
[1765554804467,163.0470912,134.53,134.46,14.84351889]
[1765554804468,7.434468,134.51,134.46,14.84351889]
[1765554804643,7.434468,134.51,134.45,0.68]
[1765554804644,7.40642013,134.51,134.45,7.43721476]
[1765554804837,75.0,134.51,134.45,0.68]
[1765554805042,13.0470912,134.5,134.43,0.68]
[1765554805242,150.0,134.49,134.41,0.68]
[1765554805468,75.0,134.47,134.41,0.68]
[1765554805670,150.0,134.47,134.41,0.68]
[1765554805865,75.0,134.45,134.4,8.12045147]
[1765554806050,8.14,134.44,134.4,15.5268716]
[1765554806256,8.14,134.44,134.41,15.52599474]
[1765554806572,8.14,134.44,134.41,0.68]
[1765554806753,7.40642013,134.43,134.38,8.08642013]
[1765554806958,7.40642013,134.43,134.38,14.8475553]
[1765554807157,15.57836794,134.44,134.38,0.68]
[1765554807355,7.40642013,134.41,134.36,7.44268242]
[1765554807746,7.40642013,134.41,134.37,0.68]
[1765554807960,13.0470912,134.42,134.37,0.68]
[1765554808267,7.40642013,134.41,134.37,0.68]
[1765554808472,15.58047619,134.4,134.35,14.84919274]
[1765554808642,8.14,134.4,134.36,8.08642013]
[1765554808845,75.0,134.47,134.39,7.40642013]
[1765554809041,8.14,134.47,134.37,34.13385691]
[1765554809245,90.54642013,134.47,134.38,0.68]
[1765554809477,83.14,134.47,134.38,0.68]
[1765554809678,8.14,134.47,134.42,7.40642013]
[1765554810001,75.0,134.52,134.46,7.40642013]
[1765554810146,83.14,134.52,134.47,7.40642013]
[1765554810475,96.1870912,134.52,134.48,7.40642013]
[1765554810672,8.14,134.52,134.49,7.40642013]
[1765554810846,0.11,134.57,134.51,7.40642013]
[1765554810847,8.14,134.55,134.51,7.40642013]
[1765554811048,8.14,134.55,134.53,7.40642013]
[1765554811252,8.14,134.55,134.54,7.40642013]
[1765554811453,8.14,134.59,134.54,7.40642013]
[1765554811679,8.14,134.59,134.55,8.08642013]
[1765554811867,8.14,134.59,134.57,7.40642013]
[1765554812063,15.54642013,134.62,134.56,0.68]
[1765554812251,8.14,134.62,134.56,0.68]
[1765554812453,22.97481804,134.62,134.57,14.83749689]
[1765554812682,22.97481804,134.62,134.57,7.43107676]
[1765554812876,8.14,134.62,134.58,0.68]
[1765554813269,7.42733946,134.64,134.58,8.08642013]
[1765554813456,8.14,134.63,134.57,26.00876866]
[1765554813779,15.54642013,134.63,134.58,8.08642013]
[1765554813981,7.40642013,134.62,134.56,14.8379607]
[1765554814162,13.1570912,134.62,134.55,7.40642013]
[1765554814362,7.42886858,134.61,134.56,8.11131933]
[1765554814678,13.0470912,134.62,134.57,8.08642013]
[1765554814881,20.47543696,134.62,134.57,0.68]
[1765554815090,20.47543696,134.62,134.56,7.43131933]
[1765554815091,7.40642013,134.61,134.56,7.43131933]
[1765554815256,75.0,134.61,134.55,7.43212324]
[1765554815453,13.0470912,134.62,134.56,15.51791967]
[1765554815759,75.0,134.61,134.55,7.43209083]
[1765554815965,75.0,134.61,134.54,7.43265582]
[1765554815966,7.40642013,134.59,134.54,7.43265582]
[1765554816174,8.14,134.59,134.55,14.83836319]
[1765554816368,22.97662604,134.59,134.55,0.68]
[1765554816564,15.57020591,134.59,134.55,0.68]
[1765554816768,8.14,134.59,134.55,15.51829967]
[1765554816961,8.14,134.59,134.55,8.11187954]
[1765554817284,8.14,134.59,134.57,7.39053022]
[1765554817485,8.14,134.59,134.56,0.68]
[1765554817662,8.14,134.59,134.55,14.82240976]
[1765554817983,13.0470912,134.62,134.58,7.39053022]
[1765554818185,20.47554091,134.62,134.57,7.39053022]
[1765554818363,20.47554091,134.62,134.58,0.68]
[1765554818562,20.47554091,134.62,134.58,8.07053022]
[1765554818873,15.5673183,134.64,134.59,7.39053022]
[1765554819075,97.95784852,134.64,134.58,14.82086519]
[1765554819381,8.14,134.64,134.6,7.39053022]
[1765554819690,15.56722685,134.64,134.59,8.07053022]
[1765554819859,8.14,134.64,134.6,7.39053022]
[1765554820062,8.14,134.64,134.6,8.07053022]
[1765554820366,90.56742731,134.64,134.58,8.11033497]
[1765554820571,90.56742731,134.64,134.59,7.39053022]
[1765554820766,90.56742731,134.64,134.6,7.39053022]
[1765554820767,8.14,134.64,134.6,7.39053022]
[1765554820976,116.52598762,134.64,134.58,14.82086519]
[1765554821191,0.11,134.63,134.56,7.39053022]
[1765554821367,7.39053022,134.62,134.57,7.43095489]
[1765554821683,7.50053022,134.63,134.57,14.82148511]
[1765554821882,7.50053022,134.63,134.58,7.43027906]
[1765554821883,7.39053022,134.63,134.58,7.43027906]
[1765554822261,7.39053022,134.63,134.57,7.43090173]
[1765554822262,7.39053022,134.62,134.57,7.43090173]
[1765554822457,0.11,134.63,134.57,7.43090173]
[1765554822667,90.56723584,134.64,134.58,7.39053022]
[1765554822900,83.14,134.64,134.59,7.39053022]